bitfinex/quotes_BTCUSD_20250303
["timestamp","ask_amount","ask_price","bid_price","bid_amount"]
[1741017870785,0.2954211,90470.0,90452.0,0.1955118]
[1741017870984,0.28206796,90462.0,90452.0,0.00011917]
[1741017871296,0.165831,90453.0,90452.0,0.00011917]
[1741017871840,0.221078,90466.0,90442.0,0.0965118]
[1741017872132,0.28246504,90462.0,90442.0,0.0965118]
[1741017872316,0.28246504,90462.0,90446.0,0.0965118]
[1741017872317,0.01733368,90458.0,90446.0,0.0965118]
[1741017872516,0.01733368,90458.0,90457.0,0.165824]
[1741017872745,0.01733368,90458.0,90457.0,0.35945497]
[1741017872894,0.01733368,90458.0,90457.0,0.09811917]
[1741017873093,0.01733368,90458.0,90457.0,0.35945497]
[1741017873324,0.01733368,90458.0,90457.0,0.19363097]
[1741017873854,0.01733368,90458.0,90457.0,0.35945497]
[1741017874142,0.00139708,90462.0,90461.0,0.26393617]
[1741017874299,0.00139708,90462.0,90461.0,0.97009159]
[1741017874502,0.00201,90475.0,90474.0,0.35942397]
[1741017874700,0.00212906,90475.0,90474.0,0.35942397]
[1741017875738,0.00212906,90475.0,90474.0,0.96252674]
[1741017875953,0.00212906,90475.0,90474.0,1.02346759]
[1741017876324,0.00212906,90475.0,90474.0,1.01646759]
[1741017876535,0.00212906,90475.0,90474.0,1.02346759]
[1741017876870,0.00212906,90475.0,90474.0,1.00892674]
[1741017877047,0.00212906,90475.0,90474.0,0.54313374]
[1741017877230,0.00212906,90475.0,90474.0,0.61080757]
[1741017877433,0.00212906,90475.0,90474.0,0.70892674]
[1741017877945,0.00212906,90475.0,90474.0,0.53613374]
[1741017878151,0.00212906,90475.0,90474.0,0.70192674]
[1741017878345,0.00212906,90475.0,90474.0,0.70892674]
[1741017878735,0.00212906,90475.0,90474.0,0.44062194]
[1741017878999,0.00212906,90475.0,90474.0,0.34250277]
[1741017879199,0.00212906,90475.0,90474.0,0.30310277]
[1741017879404,0.18107358,90475.0,90474.0,0.007]
[1741017879584,0.16792006,90475.0,90474.0,0.007]
[1741017880448,0.18109845,90475.0,90474.0,0.007]
[1741017880844,0.01530745,90475.0,90474.0,0.007]
[1741017881070,0.18109845,90475.0,90469.0,0.09811917]
[1741017881403,0.01530745,90475.0,90474.0,0.007]
[1741017881902,0.00212906,90475.0,90474.0,0.19363097]
[1741017882107,0.00212906,90475.0,90474.0,0.09811917]
[1741017882685,0.00212906,90475.0,90474.0,0.35942397]
[1741017883183,0.00212906,90475.0,90474.0,0.36642397]
[1741017883425,0.00212906,90475.0,90474.0,0.66642397]
[1741017883629,0.00212906,90475.0,90474.0,1.84946196]
[1741017883826,0.3237398,90516.0,90490.0,0.35939497]
[1741017883827,0.0129205,90511.0,90490.0,0.35939497]
[1741017884846,0.01732377,90495.0,90490.0,0.35939497]
[1741017885304,0.3237398,90516.0,90490.0,0.35939497]
[1741017885604,0.013054,90511.0,90490.0,0.36639497]
[1741017885763,0.00193376,90510.0,90490.0,0.20063097]
[1741017885969,0.00193376,90510.0,90490.0,0.36639497]
[1741017886304,0.3237398,90516.0,90490.0,0.35939497]
[1741017886512,0.01323199,90515.0,90490.0,0.65549774]
[1741017887624,0.00193349,90514.0,90490.0,0.40122194]
[1741017887874,0.220979,90507.0,90490.0,0.007]
[1741017888010,0.00193349,90514.0,90490.0,0.007]
[1741017888011,0.17925737,90491.0,90490.0,0.007]
[1741017888214,0.0003406,90491.0,90481.0,0.09811917]
[1741017888411,0.165775,90484.0,90481.0,0.09811917]
[1741017888730,0.0003406,90491.0,90481.0,0.09811917]
[1741017888731,0.01371656,90491.0,90481.0,0.09811917]
[1741017888899,0.0003406,90491.0,90481.0,0.19363097]
[1741017889298,0.0003406,90491.0,90490.0,0.007]
[1741017889556,0.01343469,90491.0,90490.0,0.007]
[1741017889962,0.0003406,90491.0,90490.0,0.007]
[1741017890370,0.17937206,90491.0,90490.0,0.007]
[1741017890569,0.1661026,90491.0,90490.0,0.007]
[1741017890731,0.0003406,90491.0,90456.0,0.00017]
[1741017890931,0.165778,90482.0,90481.0,0.007]
[1741017891464,0.22104,90481.0,90468.0,0.09811917]
[1741017891669,0.01732815,90482.0,90468.0,0.09811917]
[1741017891851,0.18310815,90482.0,90470.0,0.0955118]
[1741017892047,0.16578,90481.0,90470.0,0.0955118]
[1741017892347,0.01732815,90482.0,90470.0,0.0955118]
[1741017893419,0.18310715,90482.0,90470.0,0.0955118]
[1741017893573,0.01732815,90482.0,90470.0,0.2613108]
[1741017893778,0.01732815,90482.0,90476.0,0.0955118]
[1741017893985,0.01732815,90482.0,90481.0,0.0955118]
[1741017894584,0.01732815,90482.0,90472.0,0.09811917]
[1741017894757,0.01732815,90482.0,90464.0,0.09811917]
[1741017894980,0.00193449,90481.0,90467.0,0.09811917]
[1741017895181,0.00193449,90481.0,90458.0,0.39422194]
[1741017895352,0.00193449,90481.0,90460.0,0.09811917]
[1741017895548,0.221043,90480.0,90458.0,0.29610277]
[1741017895789,0.00193454,90479.0,90437.0,0.0476]
[1741017896101,0.3,90478.0,90456.0,0.09828917]
[1741017896313,0.3,90478.0,90457.0,0.0955118]
[1741017896487,0.165791,90476.0,90463.0,0.165813]
[1741017896687,0.38865058,90490.0,90465.0,0.0955118]
[1741017896890,0.00193438,90489.0,90468.0,0.221072]
[1741017897091,0.402,90518.0,90482.0,0.0955118]
[1741017897291,0.402,90518.0,90481.0,0.09811917]
[1741017897292,0.0003406,90491.0,90481.0,0.09811917]
[1741017897655,0.221018,90490.0,90464.0,0.09811917]
[1741017897863,0.00193448,90489.0,90470.0,0.0955118]
[1741017898174,0.001,90480.0,90479.0,0.2612958]
[1741017898375,0.001,90480.0,90479.0,0.79615582]
[1741017898599,0.0003406,90491.0,90490.0,0.2612758]
[1741017898775,0.0003406,90491.0,90490.0,0.65939497]
[1741017899662,0.0003406,90491.0,90490.0,0.65839497]
[1741017900671,0.0003406,90491.0,90490.0,0.67293582]
[1741017901052,0.00201,90501.0,90500.0,0.67391682]
[1741017901205,0.00201,90501.0,90500.0,1.58741959]
[1741017901589,0.00201,90501.0,90500.0,1.63381959]
[1741017901811,0.0003398,90517.0,90508.0,0.65936197]
[1741017902189,0.0003398,90517.0,90508.0,0.67390282]
[1741017902507,0.0003398,90517.0,90508.0,0.65936197]
[1741017902914,0.0003398,90517.0,90508.0,0.49363097]
[1741017903112,0.0003398,90517.0,90508.0,0.19363097]
[1741017903315,0.03960333,90509.0,90508.0,0.19363097]
[1741017903673,0.03960333,90509.0,90508.0,0.35936197]
[1741017904043,0.01766015,90509.0,90508.0,0.95546474]
[1741017904200,0.0003398,90509.0,90508.0,0.85995294]
[1741017904409,0.0003398,90509.0,90508.0,0.95546474]
[1741017904608,0.0003398,90509.0,90508.0,0.96246474]
[1741017905130,0.0003398,90509.0,90508.0,0.95546474]
[1741017905295,0.0003398,90509.0,90508.0,0.96246474]
[1741017905717,0.0003398,90509.0,90508.0,0.76183377]
[1741017905936,0.0003398,90509.0,90508.0,0.95546474]
[1741017907059,0.0003398,90509.0,90508.0,0.96246474]
[1741017907668,0.0003398,90509.0,90508.0,0.95546474]
[1741017908371,0.0003398,90509.0,90508.0,0.96246474]
[1741017909001,0.0003398,90509.0,90508.0,0.95546474]
[1741017910278,0.0003398,90509.0,90508.0,0.96246474]
[1741017910687,0.0003398,90509.0,90508.0,0.97700559]
[1741017910886,0.0003398,90517.0,90516.0,0.65934697]
[1741017910887,9.6e-07,90517.0,90516.0,0.65934697]
[1741017911109,9.6e-07,90517.0,90516.0,0.67388782]
[1741017911313,9.6e-07,90517.0,90516.0,1.06136974]
[1741017911894,9.6e-07,90517.0,90516.0,1.07591059]
[1741017912096,9.6e-07,90517.0,90516.0,1.08291059]
[1741017913174,9.6e-07,90517.0,90516.0,0.70122194]
[1741017913377,9.6e-07,90517.0,90516.0,0.96244974]
[1741017913543,9.6e-07,90517.0,90516.0,0.09811917]
[1741017913997,9.6e-07,90517.0,90516.0,0.27083517]
[1741017914148,0.02226968,90517.0,90516.0,0.36634697]
[1741017914364,9.6e-07,90517.0,90516.0,0.50138782]
[1741017914563,9.6e-07,90517.0,90516.0,0.41879251]
[1741017914820,9.6e-07,90517.0,90516.0,0.52130431]
[1741017915034,9.6e-07,90517.0,90516.0,0.82130431]
[1741017915194,0.00034,90537.0,90516.0,1.58499108]
[1741017915486,0.00212915,90527.0,90526.0,0.65932897]
[1741017915687,0.00212915,90527.0,90526.0,1.85200611]
[1741017915863,0.00212915,90527.0,90526.0,1.75388694]
[1741017916081,0.00212915,90527.0,90526.0,1.76842779]
[1741017916291,0.00212915,90527.0,90526.0,1.86654696]
[1741017916489,0.00212915,90527.0,90526.0,1.77103516]
[1741017916698,0.00212915,90527.0,90526.0,1.65061431]
[1741017916861,0.00212915,90527.0,90526.0,0.76516897]
[1741017917873,0.00212915,90527.0,90526.0,0.77216897]
[1741017918279,0.00212915,90527.0,90526.0,0.76516897]
[1741017918474,0.00212915,90527.0,90526.0,0.60647097]
[1741017918801,0.00212915,90527.0,90526.0,0.50063097]
[1741017919011,0.00212915,90527.0,90526.0,0.36632897]
[1741017919210,0.00212915,90527.0,90526.0,0.20063097]
[1741017919452,0.00212915,90527.0,90526.0,0.36632897]
[1741017919838,0.02405838,90527.0,90526.0,0.36632897]
[1741017920067,0.02405838,90527.0,90526.0,0.2682098]
[1741017920749,0.02405838,90527.0,90526.0,0.36632897]
[1741017920893,0.02405838,90527.0,90526.0,0.2682098]
[1741017921321,0.02405838,90527.0,90526.0,0.36632897]
[1741017922078,0.02405838,90527.0,90526.0,0.2682098]
[1741017922316,0.02405838,90527.0,90526.0,0.36632897]
[1741017922601,0.02405838,90527.0,90526.0,0.2682098]
[1741017922793,0.02405838,90527.0,90526.0,0.36632897]
[1741017923094,0.02405838,90527.0,90526.0,0.35932897]
[1741017923256,0.02405838,90527.0,90526.0,0.36632897]
[1741017923658,0.02405838,90527.0,90526.0,0.35932897]
[1741017924103,0.02405838,90527.0,90526.0,0.96243174]
[1741017924502,0.02405838,90527.0,90526.0,0.95543174]
[1741017924800,0.02405838,90527.0,90526.0,0.86431257]
[1741017925148,0.02405838,90527.0,90526.0,0.96243174]
[1741017925783,0.02405838,90527.0,90526.0,0.86431257]
[1741017925988,0.02405838,90527.0,90526.0,0.0955118]
[1741017926187,0.02405838,90527.0,90516.0,0.09845917]
[1741017926188,0.165711,90519.0,90516.0,0.09845917]
[1741017926425,0.02422838,90527.0,90516.0,0.00034]
[1741017926845,0.165714,90517.0,90516.0,0.00034]
[1741017927047,0.24515838,90527.0,90516.0,0.00034]
[1741017927389,0.165711,90519.0,90516.0,0.00034]
[1741017927557,0.165714,90517.0,90516.0,0.00034]
[1741017927781,0.165714,90517.0,90498.0,0.0955118]
[1741017927782,0.00151966,90517.0,90508.0,0.09811917]
[1741017928056,0.28200773,90520.0,90498.0,0.0955118]
[1741017928309,0.00193368,90519.0,90498.0,0.0955118]
[1741017928609,0.165742,90502.0,90481.0,0.09811917]
[1741017928892,0.165742,90502.0,90469.0,0.0955118]
[1741017928893,0.28200773,90496.0,90469.0,0.0955118]
[1741017929091,0.28200773,90480.0,90464.0,0.0001701]
[1741017929303,0.28200773,90480.0,90471.0,0.0955118]
[1741017929585,0.01732911,90477.0,90471.0,0.0955118]
[1741017930431,0.01739927,90477.0,90474.0,0.0955118]
[1741017930584,0.01739927,90477.0,90476.0,0.0955118]
[1741017930969,0.01739927,90477.0,90476.0,0.2613008]
[1741017931195,0.03917238,90477.0,90476.0,0.65552274]
[1741017931334,0.03917238,90477.0,90476.0,0.70462274]
[1741017931541,0.03917238,90477.0,90476.0,1.00462274]
[1741017931933,7.016e-05,90477.0,90476.0,1.01916359]
[1741017932324,7.016e-05,90477.0,90476.0,1.00462274]
[1741017932742,7.016e-05,90477.0,90476.0,1.02616359]
[1741017932952,7.016e-05,90477.0,90476.0,1.56646359]
[1741017933162,0.00830153,90535.0,90522.0,0.0955118]
[1741017933329,0.00225021,90527.0,90526.0,0.2612098]
[1741017933706,0.01956944,90527.0,90526.0,0.35932897]
[1741017934112,0.01956944,90527.0,90526.0,0.09811917]
[1741017934636,0.01956944,90527.0,90524.0,0.0955118]
[1741017934839,0.04225891,90527.0,90526.0,0.09811917]
[1741017935014,0.0469306,90527.0,90524.0,0.0955118]
[1741017935369,0.0469306,90527.0,90526.0,0.35932897]
[1741017935671,0.00225021,90527.0,90526.0,0.9893457]
[1741017936062,0.00225021,90527.0,90526.0,0.85731257]
[1741017936218,0.00225021,90527.0,90526.0,0.95543174]
[1741017936428,0.00225021,90527.0,90526.0,0.96997259]
[1741017937021,0.00225021,90527.0,90526.0,0.95543174]
[1741017937236,0.00225021,90527.0,90526.0,0.46180077]
[1741017937487,0.00694563,90527.0,90526.0,0.65543174]
[1741017937807,0.00225021,90527.0,90526.0,0.65543174]
[1741017938432,0.00225021,90527.0,90505.0,0.01454085]
[1741017938433,0.00225021,90527.0,90517.0,0.0955118]
[1741017938554,0.00225021,90527.0,90517.0,0.09811917]
[1741017938913,0.00225021,90527.0,90526.0,0.2682098]
[1741017939152,0.00225021,90527.0,90526.0,0.35932897]
[1741017939565,0.00225021,90527.0,90526.0,0.36632897]
[1741017939915,0.00225021,90527.0,90526.0,0.65543174]
[1741017940224,0.00225021,90527.0,90526.0,0.66243174]
[1741017940635,0.00225021,90527.0,90526.0,0.67697259]
[1741017941788,0.00225021,90527.0,90526.0,0.65543174]
[1741017941991,0.00225021,90527.0,90526.0,0.56431257]
[1741017942202,0.00225021,90527.0,90526.0,0.66243174]
[1741017942748,0.00225021,90527.0,90526.0,0.65543174]
[1741017942971,0.00225021,90527.0,90526.0,0.66243174]
[1741017943330,0.00225021,90527.0,90526.0,0.56431257]
[1741017943532,0.00225021,90527.0,90526.0,0.65543174]
[1741017943688,0.00225021,90527.0,90526.0,0.48973374]
[1741017944089,0.00225021,90527.0,90524.0,0.165701]
[1741017944299,0.00225021,90527.0,90521.0,0.0955118]
[1741017944478,0.00225021,90527.0,90526.0,0.35932897]
[1741017944934,0.01956769,90527.0,90526.0,0.36632897]
[1741017945646,0.01956769,90527.0,90526.0,0.35932897]
[1741017945852,0.01956769,90527.0,90526.0,0.36632897]
[1741017946054,0.00225021,90527.0,90526.0,0.1025118]
[1741017946209,0.00225021,90527.0,90526.0,0.36632897]
[1741017946415,0.00225021,90527.0,90526.0,0.35932897]
[1741017946613,0.00225021,90527.0,90526.0,0.36632897]
[1741017947088,0.00225021,90527.0,90526.0,0.007]
[1741017947361,0.220931,90526.0,90516.0,0.00034]
[1741017947514,0.00225021,90527.0,90516.0,0.00034]
[1741017948017,0.00663354,90526.0,90500.0,0.0955118]
[1741017948217,0.00663354,90526.0,90484.0,0.37630277]
[1741017948218,0.0047002,90526.0,90506.0,0.0955118]
[1741017948422,0.0047002,90526.0,90514.0,0.0955118]
[1741017948603,0.00824623,90525.0,90515.0,0.0955118]
[1741017948959,0.165707,90521.0,90515.0,0.0955118]
[1741017949184,0.00824623,90525.0,90516.0,0.007]
[1741017949185,0.165714,90517.0,90516.0,0.007]
[1741017949368,0.16764761,90517.0,90516.0,0.007]
[1741017949737,0.165752,90497.0,90493.0,0.0955118]
[1741017950079,0.165744,90501.0,90500.0,0.007]
[1741017951224,0.00842127,90503.0,90500.0,0.007]
[1741017951426,0.165739,90504.0,90500.0,0.007]
[1741017951427,0.17399023,90501.0,90500.0,0.007]
[1741017951940,0.00824623,90501.0,90500.0,0.007]
[1741017952181,0.00824623,90501.0,90500.0,0.172745]
[1741017952358,0.00824623,90501.0,90500.0,0.2682568]
[1741017952763,0.17399023,90501.0,90500.0,0.007]
[1741017953020,0.00824623,90501.0,90500.0,0.007]
[1741017953337,0.01289385,90501.0,90500.0,0.2612568]
[1741017953841,0.00824623,90501.0,90500.0,0.2612568]
[1741017954051,0.00010965,90502.0,90499.0,0.0955118]
[1741017954453,0.166744,90501.0,90500.0,0.002]
[1741017954639,0.00564762,90501.0,90500.0,0.002]
[1741017954848,0.00564762,90501.0,90499.0,0.0955118]
[1741017954849,0.00464762,90501.0,90499.0,0.0955118]
[1741017955075,0.001,90501.0,90500.0,0.002]
[1741017955414,0.001,90501.0,90500.0,0.2632568]
[1741017955615,0.00010965,90502.0,90501.0,0.72341582]
[1741017955979,0.00110965,90502.0,90501.0,0.735873]
[1741017956204,0.00010965,90502.0,90501.0,0.735873]
[1741017956438,0.0001701,90526.0,90525.0,0.80297182]
[1741017956676,0.0001701,90526.0,90525.0,1.20343459]
[1741017957084,0.0003404,90549.0,90535.0,0.3]
[1741017957085,0.09662231,90540.0,90535.0,0.3]
[1741017957312,0.0003404,90549.0,90541.0,0.67284182]
[1741017957548,0.0003404,90549.0,90541.0,0.67184182]
[1741017957781,0.01399015,90542.0,90541.0,0.50617182]
[1741017958022,0.01399015,90542.0,90541.0,0.65730097]
[1741017958262,0.01399015,90542.0,90541.0,0.3]
[1741017958497,0.01399015,90542.0,90541.0,0.19063097]
[1741017958739,0.01499015,90542.0,90541.0,0.007]
[1741017958978,0.01499015,90542.0,90541.0,0.09811917]
[1741017959213,0.01599015,90542.0,90541.0,0.19163097]
[1741017959457,0.01699015,90542.0,90541.0,0.008]
[1741017959706,0.01499015,90542.0,90541.0,0.001]
[1741017960204,0.18516755,90542.0,90541.0,0.001]
[1741017960404,0.01949955,90542.0,90541.0,0.007]
[1741017960542,0.01949955,90542.0,90541.0,0.19763097]
[1741017960723,0.01599015,90542.0,90541.0,0.21917182]
[1741017961022,0.01599015,90542.0,90541.0,0.25273097]
[1741017961355,0.01499015,90542.0,90541.0,0.24573097]
[1741017961555,0.01399015,90542.0,90541.0,0.19063097]
[1741017961757,0.01399015,90542.0,90541.0,0.0995118]
[1741017961758,0.01499015,90542.0,90541.0,0.0995118]
[1741017961992,0.18065815,90542.0,90541.0,0.007]
[1741017962227,0.49094569,90542.0,90541.0,0.007]
[1741017962430,0.49351213,90542.0,90541.0,0.007]
[1741017962557,0.5108308,90542.0,90541.0,0.007]
[1741017963088,0.0441628,90542.0,90529.0,0.0925118]
[1741017963286,0.0439556,90542.0,90533.0,0.0925118]
[1741017963519,0.2106236,90542.0,90541.0,0.007]
[1741017963699,0.21255654,90542.0,90541.0,0.007]
[1741017964084,0.52021474,90542.0,90541.0,0.007]
[1741017964338,0.465696,90527.0,90526.0,0.00034]
[1741017964696,0.47018507,90527.0,90526.0,0.00034]
[1741017965106,0.0074882,90524.0,90489.0,0.0925118]
[1741017965318,0.165776,90483.0,90478.0,0.09811917]
[1741017965522,0.00448907,90483.0,90482.0,0.28837334]
[1741017965721,0.165739,90504.0,90491.0,0.0925118]
[1741017965921,0.00448907,90503.0,90491.0,0.0925118]
[1741017966144,0.0019339,90502.0,90485.0,0.0925118]
[1741017966395,0.16576,90493.0,90484.0,0.0925118]
[1741017966545,0.165748,90499.0,90491.0,0.0925118]
[1741017966746,0.00448907,90492.0,90491.0,0.0925118]
[1741017966953,0.00448907,90492.0,90485.0,0.00010965]
[1741017966954,0.0019339,90503.0,90485.0,0.00010965]
[1741017967162,0.165771,90486.0,90485.0,0.00010965]
[1741017967363,0.16666635,90483.0,90482.0,0.10474237]
[1741017967650,0.00634114,90483.0,90482.0,0.20425417]
[1741017967873,0.00189035,90483.0,90482.0,0.1065118]
[1741017968096,0.00189035,90483.0,90482.0,0.20463097]
[1741017968281,0.00089035,90483.0,90482.0,0.19763097]
[1741017968593,0.001,90483.0,90482.0,0.19763097]
[1741017968739,0.001,90483.0,90482.0,0.36340897]
[1741017968936,0.001,90492.0,90491.0,0.0925118]
[1741017969377,0.001,90492.0,90488.0,0.09811917]
[1741017969597,0.001,90492.0,90491.0,0.0915118]
[1741017969830,0.3234,90501.0,90491.0,0.0915118]
[1741017970016,0.00193384,90500.0,90483.0,0.0915118]
[1741017970223,0.001,90492.0,90476.0,0.0915118]
[1741017970423,0.001,90492.0,90483.0,0.0905118]
[1741017970687,0.001,90492.0,90483.0,0.18863097]
[1741017970924,0.001,90492.0,90484.0,0.0905118]
[1741017971146,0.001,90492.0,90491.0,0.0905118]
[1741017971666,0.3234,90501.0,90478.0,0.0905118]
[1741017971667,0.28237002,90501.0,90478.0,0.0905118]
[1741017971869,0.28237002,90490.0,90483.0,0.001]
[1741017972069,0.165775,90484.0,90483.0,0.008]
[1741017972315,0.00441972,90484.0,90483.0,0.007]
[1741017972517,0.165775,90484.0,90483.0,0.007]
[1741017972720,0.17019472,90484.0,90483.0,0.007]
[1741017973196,0.17119472,90484.0,90483.0,0.007]
[1741017973931,0.18852415,90484.0,90483.0,0.007]
[1741017974165,0.81192415,90484.0,90483.0,0.007]
[1741017974482,0.81192415,90484.0,90472.0,0.0003402]
[1741017974483,0.165795,90473.0,90472.0,0.0003402]
[1741017974684,0.47019998,90473.0,90472.0,0.0003402]
[1741017974900,0.465809,90465.0,90442.0,0.0905118]
[1741017975104,0.465809,90465.0,90464.0,0.00024026]
[1741017975301,0.17021398,90465.0,90464.0,0.00024026]
[1741017975718,0.17842697,90465.0,90464.0,0.00024026]
[1741017976252,0.01361797,90465.0,90464.0,0.00024026]
[1741017976458,0.01021299,90465.0,90464.0,0.00724026]
[1741017976671,0.01021299,90465.0,90464.0,0.09775206]
[1741017977059,0.002,90465.0,90464.0,0.36168223]
[1741017977297,0.002,90465.0,90464.0,0.40858223]
[1741017977591,0.002,90465.0,90464.0,0.42312308]
[1741017977874,0.001,90465.0,90464.0,0.42312308]
[1741017978076,0.00820394,90499.0,90487.0,0.0895118]
[1741017978251,0.00459198,90498.0,90487.0,0.0885118]
[1741017978455,0.00459198,90498.0,90483.0,0.09811917]
[1741017978658,0.00459198,90498.0,90497.0,0.0875118]
[1741017978857,0.00820394,90499.0,90497.0,0.0875118]
[1741017979062,0.00417453,90498.0,90497.0,0.0865118]
[1741017979265,0.00417453,90498.0,90497.0,0.2522628]
[1741017979469,0.00920394,90499.0,90498.0,0.2522608]
[1741017979811,0.00920394,90499.0,90498.0,1.09727293]
[1741017979812,0.001,90499.0,90498.0,1.09727293]
[1741017979988,0.00849034,90533.0,90532.0,0.0865118]
[1741017980221,0.00849034,90533.0,90532.0,0.2521988]
[1741017980222,0.00860943,90533.0,90532.0,0.2521988]
[1741017980422,0.00860943,90533.0,90532.0,0.35031797]
[1741017980550,0.00011909,90533.0,90532.0,0.70906159]
[1741017980751,0.00011909,90533.0,90532.0,1.00906159]
[1741017980976,0.00011909,90533.0,90532.0,1.00806159]
[1741017981539,0.0986775,90536.0,90532.0,1.00806159]
[1741017981540,0.04879659,90536.0,90535.0,0.66285282]
[1741017981654,0.04879659,90536.0,90535.0,0.66185282]
[1741017982023,0.0003404,90549.0,90541.0,0.64730097]
[1741017982174,0.0003404,90549.0,90541.0,0.66084182]
[1741017982409,0.0003404,90549.0,90541.0,0.65984182]
[1741017982559,0.0003404,90549.0,90541.0,0.76488182]
[1741017982765,0.0003404,90549.0,90541.0,0.76388182]
[1741017983320,0.0003404,90549.0,90548.0,0.64428797]
[1741017983525,0.0003404,90549.0,90548.0,1.73108511]
[1741017984222,0.0003404,90549.0,90548.0,1.74562596]
[1741017984805,0.0003404,90549.0,90548.0,1.74362596]
[1741017985403,0.0003404,90549.0,90548.0,1.85062596]
[1741017985601,0.0013404,90549.0,90548.0,1.84762596]
[1741017985985,0.0003404,90549.0,90548.0,1.85062596]
[1741017986203,0.0003408,90561.0,90553.0,0.48967897]
[1741017986406,0.0003408,90561.0,90553.0,1.41912259]
[1741017986951,0.0003408,90561.0,90553.0,1.71912259]
[1741017987198,0.0003408,90561.0,90560.0,0.64326697]
[1741017987310,0.00073769,90561.0,90560.0,2.83117489]
[1741017988069,0.00073769,90561.0,90560.0,2.93017489]
[1741017988364,0.00034,90562.0,90561.0,0.81559434]
[1741017988569,0.000459,90562.0,90561.0,1.59220859]
[1741017988723,0.000459,90562.0,90561.0,1.49120859]
[1741017988933,0.000459,90562.0,90561.0,1.39708942]
[1741017989134,0.000459,90562.0,90561.0,1.50200942]
[1741017989576,0.000459,90562.0,90561.0,1.59412859]
[1741017989913,0.000459,90562.0,90561.0,1.27958774]
[1741017990427,0.000459,90562.0,90561.0,1.47466774]
[1741017990666,0.000459,90562.0,90561.0,1.49342857]
[1741017990867,0.000459,90562.0,90561.0,1.58654774]
[1741017991046,0.000459,90562.0,90561.0,0.18163097]
[1741017991247,0.000459,90562.0,90561.0,0.0955118]
[1741017991451,0.166091,90562.0,90561.0,0.007]
[1741017991815,0.1848844,90562.0,90561.0,0.007]
[1741017991933,0.4848844,90562.0,90561.0,0.014]
[1741017992132,0.48295171,90562.0,90561.0,0.007]
[1741017992336,0.31731971,90562.0,90561.0,0.007]
[1741017992531,0.01731971,90562.0,90561.0,0.014]
[1741017992750,0.20026621,90562.0,90561.0,0.014]
[1741017992992,0.20219887,90562.0,90561.0,0.014]
[1741017993791,0.0813,90559.0,90530.0,0.17463097]
[1741017994165,0.165686,90533.0,90525.0,0.17463097]
[1741017994378,0.165686,90533.0,90506.0,0.220978]
[1741017994379,0.00193318,90538.0,90522.0,0.09311917]
[1741017994594,0.00193318,90538.0,90501.0,0.29610277]
[1741017994595,0.0043407,90532.0,90501.0,0.29610277]
[1741017994770,0.3723396,90530.0,90503.0,0.0815118]
[1741017995003,0.00193362,90529.0,90499.0,0.0815118]
[1741017995192,0.30627362,90529.0,90499.0,0.0815118]
[1741017995396,0.165698,90526.0,90525.0,0.007]
[1741017995639,0.16763156,90526.0,90525.0,0.007]
[1741017995838,0.3234,90558.0,90534.0,0.09311917]
[1741017996110,0.3234,90558.0,90518.0,0.10484]
[1741017996111,0.30193302,90549.0,90518.0,0.10484]
[1741017996337,0.3723396,90530.0,90507.0,0.09311917]
[1741017996539,0.165742,90502.0,90501.0,0.007]
[1741017997105,0.3,90519.0,90500.0,0.0815118]
[1741017997309,0.165742,90502.0,90501.0,0.00039689]
[1741017997565,0.00429689,90502.0,90501.0,0.00039689]
[1741017997736,0.00429689,90502.0,90501.0,0.08190869]
[1741017997912,0.001,90526.0,90506.0,0.09311917]
[1741017998094,0.165716,90517.0,90506.0,0.09311917]
[1741017998304,0.002,90519.0,90513.0,0.0815118]
[1741017998505,0.002,90519.0,90510.0,0.17463097]
[1741017998704,0.0134627,90519.0,90510.0,0.09311917]
[1741017999004,0.0134627,90519.0,90518.0,0.0805118]
[1741017999213,0.0134627,90519.0,90512.0,0.0805118]
[1741017999416,0.0134627,90519.0,90518.0,0.0805118]
[1741017999616,0.001,90519.0,90518.0,0.0805118]
[1741017999848,0.001,90526.0,90524.0,0.09311917]
[1741018000207,0.001,90526.0,90518.0,0.09311917]
[1741018000208,0.01343426,90526.0,90518.0,0.09311917]
[1741018000407,0.01343426,90526.0,90508.0,0.17363097]
[1741018000639,0.00193339,90525.0,90506.0,0.007]
[1741018000810,0.165742,90502.0,90501.0,0.09351606]
[1741018001011,0.165728,90510.0,90506.0,0.09311917]
[1741018001234,0.00393365,90519.0,90506.0,0.09311917]
[1741018001477,0.00293365,90519.0,90501.0,0.00039689]
[1741018001682,0.00193365,90519.0,90508.0,0.007]
[1741018002092,0.01332051,90526.0,90501.0,0.00539689]
[1741018002293,0.00193374,90525.0,90501.0,0.00539689]
[1741018002495,0.001,90510.0,90506.0,0.09911917]
[1741018002688,0.001,90510.0,90507.0,0.0805118]
[1741018002889,0.001,90519.0,90508.0,0.005]
[1741018003205,0.465729,90509.0,90508.0,0.012]
[1741018003372,0.3,90501.0,90466.0,0.39022194]
[1741018003543,0.221045,90480.0,90466.0,0.00211909]
[1741018003740,0.00193444,90479.0,90466.0,0.00211909]
[1741018003941,0.3723396,90492.0,90473.0,0.0805118]
[1741018003942,0.00193446,90490.0,90473.0,0.0805118]
[1741018004240,0.3234,90498.0,90479.0,0.0805118]
[1741018004427,0.15952,90551.0,90466.0,0.00211909]
[1741018004428,0.00788083,90518.0,90485.0,0.09211917]
[1741018004578,0.165733,90507.0,90506.0,0.004]
[1741018004780,0.46766687,90507.0,90506.0,0.011]
[1741018004986,0.3,90507.0,90491.0,0.0805118]
[1741018005210,0.165738,90505.0,90491.0,0.0805118]
[1741018005409,0.001,90498.0,90497.0,0.33738197]
[1741018005610,0.01732521,90510.0,90501.0,0.0795118]
[1741018005813,0.01732521,90510.0,90500.0,0.09211917]
[1741018006035,0.00842206,90519.0,90506.0,0.007]
[1741018006036,0.001,90507.0,90506.0,0.007]
[1741018006236,0.002,90507.0,90506.0,0.0795118]
[1741018006567,0.002,90507.0,90506.0,0.17163097]
[1741018006732,0.002,90507.0,90506.0,0.33736497]
[1741018006932,0.002,90507.0,90506.0,0.17163097]
[1741018007139,0.002,90507.0,90506.0,0.33736497]
[1741018007342,0.001,90507.0,90506.0,0.17163097]
[1741018007683,0.001,90507.0,90500.0,0.001]
[1741018007885,0.220979,90506.0,90500.0,0.001]
[1741018008089,0.165734,90507.0,90500.0,0.001]
[1741018008223,0.00466032,90505.0,90497.0,0.07863089]
[1741018008423,0.3723396,90520.0,90503.0,0.0785118]
[1741018008625,0.001,90507.0,90506.0,0.09311917]
[1741018008813,0.002,90507.0,90506.0,0.09311917]
[1741018009010,0.001,90507.0,90506.0,0.09211917]
[1741018009235,0.001,90507.0,90502.0,0.09211917]